Cogmind - Beta 10.2 @@@ ROGUE MODE // 2021.06.29 @ 12:40:49 Player: rath Result: Destroyed by G-47 Trooper with Particle Gun Performance ------------- Evolutions (0) 0 Regions Visited (2) 400 Robots Destroyed (28) 140 Value Destroyed (744) 744 Prototype IDs (2) 40 Alien Tech Used (0) 0 Bonus (0) 0 TOTAL SCORE: 1324 Bonus ------- None Cogmind --------- Core Integrity 0/250 Matter 300/300 Energy 250/250 System Corruption 5% Temperature Cool (42) Movement Walking (150) Ox1 Location -10/Mines Parts ------- > --- POWER (1) -------- Ion Engine > --- PROPULSION (2) --- Aluminum Leg > --- UTILITY (2) ------ Medium Storage Unit > --- WEAPON (2) ------- Small Laser > --- INVENTORY (8) ---- Ion Engine Aluminum Leg Aluminum Leg Aluminum Leg Cooling System Sensor Array Signal Interpreter Transport Network Coupler Peak State ------------ > --- POWER ------------ Ion Engine > --- PROPULSION ------- Aluminum Leg Aluminum Leg > --- UTILITY ---------- Improved Heat Sink Medium Storage Unit > --- WEAPON ----------- Beam Rifle Assault Rifle > --- INVENTORY -------- Aluminum Leg Aluminum Leg Cooling System Sensor Array Signal Interpreter Transport Network Coupler Hardened Light Armor Plating Beam Rifle [Rating: 11] Favorites ----------- Power Ion Engine Engine Ion Engine Propulsion Aluminum Leg Leg Aluminum Leg Utility Medium Storage Unit Device Sensor Array Storage Medium Storage Unit Protection Hardened Light Armor Plating Weapon Assault Rifle Energy Gun Beam Rifle Ballistic Gun Assault Rifle Special Weapon Mining Laser Build | -11 -10 -10 ------- Run | Scr Mat Min Slots Evolved . | . . . Power . | . . . Propulsion . | . . . Utility . | . . . Weapon . | . . . Parts Attached 34 | 5 15 14 Power 4 | 1 3 . Engine 4 | 1 3 . Core . | . . . Reactor . | . . . Propulsion 11 | 2 4 5 Treads . | . . . Leg 11 | 2 4 5 Wheel . | . . . Hover . | . . . Flight . | . . . Utility 5 | . 5 . Device 2 | . 2 . Storage 1 | . 1 . Processor . | . . . Hackware . | . . . Protection 2 | . 2 . Artifact . | . . . Weapon 14 | 2 3 9 Energy Gun 7 | 1 2 4 Energy Cannon . | . . . Ballistic Gun 4 | 1 1 2 Ballistic Cannon . | . . . Launcher . | . . . Special Weapon 3 | . . 3 Impact Weapon . | . . . Slashing Weapon . | . . . Piercing Weapon . | . . . Special Melee Weapon . | . . . Unidentified Prototypes . | . . . Parts Lost 9 | . 2 7 Power 1 | . 1 . Propulsion 1 | . . 1 Utility 2 | . 1 1 Weapon 5 | . . 5 Highest Loss Streak 3 | . 2 3 Average Slot Usage (%) 97 | . 97 97 Engine 13 | . 13 14 Leg 27 | . 28 27 Device 3 | . 6 . Storage 13 | . 12 14 Protection 9 | . 7 12 Energy Gun 14 | . 14 14 Ballistic Gun 11 | . 14 8 Special Weapon 1 | . . 3 Naked Turns . | . . . Heaviest Build 23 | 7 23 23 Greatest Support 20 | 20 20 20 Greatest Overweight (x) 1 | . 1 1 Average Overweight (x) . | . . . Largest Inventory Capacity 8 | 4 8 8 Average Capacity 7 | 4 7 8 Most Carried 8 | 4 8 8 Average Carried 7 | 3 6 7 Final Capacity 8 | 4 8 8 Final Carried 8 | 4 8 8 Class Distribution -------------------- 83% | Mutant 16% | Scavenger-Mutant Dominant Class ---------------- Mutant | -10/Materials Mutant | -10/Mines Resources | -11 -10 -10 ----------- Run | Scr Mat Min Matter Collected 840 | 185 378 277 Remotely . | . . . Salvage Created 958 | . 598 360 Parts 53 | . 34 19 Haulers Intercepted 2 | . 2 . Recyclers Shooed . | . . . Parts Field Recycled . | . . . Retrieved Matter . | . . . Parts Self-Destructed . | . . . Prevented . | . . . Kills | -11 -10 -10 ------- Run | Scr Mat Min Combat Hostiles Destroyed 23 | . 14 9 Guns 23 | . 14 9 Classes Destroyed 5 | . 5 . Builder 1 | . 1 . Hauler 2 | . 2 . Watcher 2 | . 2 . Swarmer 6 | . 6 . Grunt 17 | . 8 9 Best Kill Streak 4 | . 4 2 Combat Bots Only 3 | . 3 2 Max Kills in Single Turn 1 | . 1 1 Gunslinging . | . . . Exploded . | . . . Melee . | . . . Uniques/NPCs Destroyed . | . . . Combat | -11 -10 -10 -------- Run | Scr Mat Min Damage Taken 1287 | . 483 804 Core 254 | . 69 185 Absorbed by Shields . | . . . Core Remaining (%) 100 | 100 . . Volleys Fired 88 | . 48 40 Largest 2 | . 2 2 Hottest 140 | . 76 140 Shots Fired 153 | . 96 57 Gun 149 | . 96 53 Cannon . | . . . Launcher . | . . . Special 4 | . . 4 Kinetic 64 | . 48 16 Thermal 89 | . 48 41 Explosive . | . . . Electromagnetic . | . . . Robot Hit Streak 10 | . 7 10 Robot Miss Streak 4 | . 4 2 Penetration Max . | . . . Secondary Targets 2 | . . 2 Max Gunslinging Chain 1 | . . 1 Shots Hit Robots 94 | . 51 43 Core Hits 49 | . 27 22 Critical Hits . | . . . Critical Kills . | . . . Critical Parts Destroyed . | . . . Melee Attacks . | . . . Impact . | . . . Slashing . | . . . Piercing . | . . . Sneak Attacks . | . . . Combat Hostiles . | . . . Follow-up Attacks . | . . . Damage Inflicted 1302 | . 716 586 Guns 1230 | . 716 514 Cannons . | . . . Explosions . | . . . Melee . | . . . Ramming . | . . . Kinetic 435 | . 260 175 Thermal 867 | . 456 411 Explosive . | . . . Electromagnetic . | . . . Impact . | . . . Slashing . | . . . Piercing . | . . . Highest Corruption 5 | . 5 5 Average Corruption 4 | . 3 5 Corruption Purged . | . . . Effects 51 | . 18 33 Message Errors 10 | . 4 6 Matter Fused 16 | . 5 11 Heat Flow Errors 4 | . 2 2 Energy Discharges 5 | . 3 2 Data Loss (minor) 9 | . 3 6 Data Loss (major) 4 | . . 4 Targeting Errors 2 | . 1 1 Weapon Failures 1 | . . 1 Overload Shots . | . . . Overflow Damage . | . . . Projectiles . | . . . Explosions . | . . . Melee . | . . . Knockbacks . | . . . Impact . | . . . Kinetic . | . . . Secondary . | . . . Self-Inflicted Damage . | . . . Shots . | . . . Rammed . | . . . Targets Rammed . | . . . Kicked . | . . . Crushed . | . . . Highest Temperature 584 | . 280 584 Average Temperature 98 | . 58 145 Received Heat Transfer 657 | . 201 456 Effects 8 | . . 8 Shutdowns 2 | . . 2 Energy Bleed 1 | . . 1 Matter Decay 1 | . . 1 Damage (minor) 2 | . . 2 Damage (major) 2 | . . 2 Siege Activations . | . . . Robots Corrupted . | . . . Combat Hostiles . | . . . Parts Fried . | . . . Impact Corruptions . | . . . Robots Melted . | . . . Combat Hostiles . | . . . Parts Melted 3 | . 1 2 Heat Transferred 2168 | . 1221 947 Parts Sabotaged . | . . . Parts Stolen . | . . . Parts Stripped . | . . . Power Chain Reactions . | . . . Missiles Intercepted . | . . . Alert | -11 -10 -10 ------- Run | Scr Mat Min Peak Influence 236 | . 236 165 Initial 65 | . . 65 Average 78 | . 86 70 Maximum Alert Level 1 | . 1 . Low Security (%) 96 | 100 94 100 Level 1 3 | . 5 . Level 2 . | . . . Level 3 . | . . . Level 4 . | . . . Level 5 . | . . . High Security . | . . . Max Security . | . . . Squads Dispatched 5 | . 5 . Investigation 2 | . 2 . Extermination . | . . . Reinforcement 3 | . 3 . Assault . | . . . Garrison . | . . . Intercept . | . . . Construction Impeded . | . . . Haulers Reinforced . | . . . Stealth | -11 -10 -10 --------- Run | Scr Mat Min Distress Signals 1 | . 1 . Communications Jammed . | . . . Distress Signals . | . . . Times Spotted 45 | . 30 15 Peak Tracking Total 3 | . 3 2 Tactical Retreats 4 | . 2 2 Traps | -11 -10 -10 ------- Run | Scr Mat Min Traps Triggered 4 | . 4 . Indirectly . | . . . Trap Hack Attempts . | . . . Triggered . | . . . Disarmed . | . . . Reprogrammed . | . . . Reused . | . . . Traps Extracted . | . . . Installed . | . . . Triggered . | . . . Machines | -11 -10 -10 ---------- Run | Scr Mat Min Machines Disabled . | . . . Max in Single Turn . | . . . Machines Sabotaged . | . . . Garrisons Compromised . | . . . Overloaded Fab Kills . | . . . Fab Network Shutdowns . | . . . Hacking | -11 -10 -10 --------- Run | Scr Mat Min Machines Accessed 7 | . 5 2 Terminals 6 | . 4 2 Fabricators . | . . . Repair Stations . | . . . Recycling Units 1 | . 1 . Scanalyzers . | . . . Garrison Access . | . . . Total Hacks 19 | . 12 7 Successful 9 | . 5 4 Failed 10 | . 7 3 Catastrophic 3 | . 2 1 Database Lockouts . | . . . Manual . | . . . Terminals 18 | . 11 7 Fabricators . | . . . Repair Stations . | . . . Recycling Units 1 | . 1 . Scanalyzers . | . . . Garrison Access . | . . . Terminal Hacks 8 | . 4 4 Record 3 | . . 3 Prototype ID Bank 1 | . 1 . Branch Access Points 1 | . 1 . Transport Status 1 | . 1 . Registered Components 1 | . 1 . Zone Layout 1 | . . 1 Fabricator Hacks . | . . . Repair Station Hacks . | . . . Recycling Unit Hacks 1 | . 1 . Retrieve Components 1 | . 1 . Scanalyzer . | . . . Garrison Access Hacks . | . . . Unauthorized Hacks . | . . . Terminals . | . . . Fabricators . | . . . Repair Stations . | . . . Recycling Units . | . . . Scanalyzers . | . . . Garrison Access . | . . . Data Cores Recovered . | . . . Used . | . . . Hacking Detections 4 | . 3 1 Full Trace Events 2 | . 1 1 Feedback Events . | . . . Feedback Blocked . | . . . Robot Schematics Acquired . | . . . Robots Built . | . . . Matter . | . . . Time . | . . . Total Robot Build Rating . | . . . Part Schematics Acquired . | . . . Parts Built . | . . . Matter . | . . . Time . | . . . Total Part Build Rating . | . . . Parts Repaired . | . . . Time . | . . . Parts Recycled . | . . . Recycled Matter . | . . . Retrieved Matter . | . . . Retrieved Components 9 | . 9 . Parts Scanalyzed . | . . . Part Schematics Acquired . | . . . Parts Damaged . | . . . Bothacking | -11 -10 -10 ------------ Run | Scr Mat Min Used RIF Installer . | . . . Robots Hacked . | . . . Non-combat . | . . . Combat . | . . . Robot Hacks Applied . | . . . Relay Couplers Released . | . . . Robots Rewired . | . . . Allies Hacked . | . . . Hacks Repelled . | . . . Allies | -11 -10 -10 -------- Run | Scr Mat Min Total Allies 1 | . . 1 Largest Group 1 | . . 1 Highest-Rated Group 31 | . . 31 Highest-Rated Ally 31 | . . 31 Total Orders . | . . . Ally Attacks . | . . . Total Damage . | . . . Kills . | . . . Allies Corrupted . | . . . Allies Melted . | . . . Intel | -11 -10 -10 ------- Run | Scr Mat Min Robot Analysis Total . | . . . Derelict Logs Recovered 1 | . . 1 Drone Launches . | . . . Drone Recoveries . | . . . Exploration | -11 -10 -10 ------------- Run | Scr Mat Min Turns Passed 2450 | 58 1385 1007 Spaces Moved 1457 | 45 825 587 Core 12 | 12 . . Treads . | . . . Legs 1445 | 33 825 587 Wheels . | . . . Hover . | . . . Flight . | . . . Fastest Speed 50 | 50 120 120 Average Speed 134 | 101 133 138 Slowest Speed 150 | 120 150 150 Overloaded Moves . | . . . Propulsion Burnouts . | . . . Robots Hopped . | . . . Cave-ins Triggered . | . . . Exploration Rate (%) 64 | 3 98 92 Regions Visited 2 Branch Regions 1 Pre-discovered Areas 1 | . . 1 Known Exits Taken 1 | . 1 . Unknown Exits Taken 1 | 1 . . Scrap Searched 1 | . . 1 Spaces Dug 1 | . . 1 Terrain Destroyed 1 | . . 1 Melee . | . . . Projectile 1 | . . 1 AOE . | . . . Terrain Rammed . | . . . Walls Destroyed . | . . . Machines Disabled . | . . . Actions | -11 -10 -10 --------- Run | Scr Mat Min Total 1796 | 55 1021 720 Wait 169 | 1 105 63 Move 1455 | 44 824 587 Hop . | . . . Pick Up 27 | 5 14 8 Fast Attach 6 | 4 2 . Attach 9 | 1 3 5 Detach . | . . . Swap 19 | . 10 9 Drop 23 | . 15 8 Fire 88 | . 48 40 Melee . | . . . Ram . | . . . Kick . | . . . Crush . | . . . Escape Stasis . | . . . Rewire . | . . . Trap . | . . . Miscellaneous . | . . . Route ------- -11/Scrapyard -10/Materials (discovered 4 exits: [*Mat x3] / *Min) -10/Mines (discovered 2 exits: [*Mat x2]) History --------- Turn | Location | Event 7 | -11/Scrapyard | Discovered new exit (range 16) 59 | -11/Scrapyard | Entered Materials 317 | -10/Materials | Build established: Mutant 335 | -10/Materials | Discovered new exit (range 4) 537 | -10/Materials | Discovered new exit (range 10) 637 | -10/Materials | Discovered new exit (range 9) 939 | -10/Materials | Identified exit to Mines 1444 | -10/Materials | Entered Mines 1459 | -10/Mines | Core integrity fell below 50% 1535 | -10/Mines | Discovered new exit (range 14) 1696 | -10/Mines | Received a Mining Laser from a helpful Derelict 2163 | -10/Mines | Discovered new exit (range 8) 2337 | -10/Mines | Build established: Scavenger-Mutant 2410 | -10/Mines | Lost 3 parts (1u2w) 2439 | -10/Mines | Core integrity fell below 20% 2451 | -10/Mines | Destroyed by G-47 Trooper with Particle Gun Last Messages --------------- 02228_ System corrupted: Matter fused (-6). 02258_ System corrupted: Matter fused (-9). 02291_ System corrupted: Matter fused (-5). 02329_ IQJ0CZ7L JT,X:9TMY KR:YY2ZT4Y9 02367_ Mining Laser destroyed. 02379_ Sml. Laser destroyed. 02379_ Hrd. Light Armor Plating destroyed. 02382_ G-34 Mercenary destroyed. 02384_ Lgt. Nuclear Core melted. 02384_ G-47 Trooper destroyed. 02385_ Acquired 38 matter. 02385_ K-01 Serf collects debris. 02387_ Acquired 4 matter. 02389_ Acquired Aluminum Leg. 02389_ K-01 Serf collects debris. 02391_ Dropped Aluminum Leg. 02393_ Acquired 10 matter. 02393_ K-01 Serf collects debris. 02441_ G-34 Mercenary destroyed. 02449_ Aluminum Leg destroyed. Map ----- +----------------------------------------------------+ | ??# ## #???# #???# "#?## #?????? | | ??# ## ##### #??## ##?# #?????? | | ??# ## !%= #??# #?##########?????? | | ??# # #??# #????????????????? | | ??# # ########??# ##????????????????? | | ??# # ##????????## ##?????????????????? | | ??# # ##????????#####??????????????????? | | ### ## #???????????????????????????????? | | ## #???????????????????????????????? | | ### ##???????????????????????????????? | | #####?# ############?????????????????????? | | #?????# #?????????????????????? | | ##????# ########## #?????????????????????? | | ###### #????????# ###???????????????????? | | ## #???????## ##??????????????????? | | #???????# #??????????????????? | | #???????# #??????????????????? | | ## ####???????## #??????????????????? | | ## #???????????# ##??????????????????? | | # ### #???????????## #???????????????????? | | ####?# #???????????## ##???????????????????? | | ###### #???????????# #????????????????????? | | [ #???????????# ##???????????????????? | | ###### #???#####???# ##??????????????????? | | ??####*##### ##??# ###### #???????????? | | ??# ! + #??# @g #???????????? | | ??# ####### #??# =%[ #???????????? | | ??# #????## ##??## ######???????????? | | #?# #????# ##????## #????????????????? | | ### #????# #??????## ##????????????????? | | #????# #???????####?????????????????? | | ####????## ##????????????????????????????? | | ##????????####?????????????????????????????? | | #??????????????????????????????????????????? | | #??????????????????????????????????????????? | | ???????????????????????????????????????????? | | ???????????????????????????????????????????? | | ???????????????????????????????????????????? | | ???????????????????????????????????????????? | | ???????????????????????????????????????????? | | ???????????????????????????????????????????? | | ???????????????????????????????????????????? | | ???????????????????????????????????????????? | | | | | | | | | | | | | | | +----------------------------------------------------+ Best States ------------- Heat Dissipation 25 Energy Generation 10 Energy Capacity 250 Matter Stores 300 Matter Capacity 300 Sight Range 16 Robot Scan Range 10 Terrain Scan Density 10 Armor Coverage 150 Evasion (%) 50 Item Schematics ----------------- None Robot Schematics ------------------ None Fabricated ------------ Nothing Alien Tech Used ----------------- None Achievements -------------- None Challenges ------------ None Game ------ Seed LobotomyDiametricVibroblade Manual? 0 Play Time 00:25:19 Cumulative 20.9 hours Start 2021.06.26 @ 18:50:07 End 2021.06.29 @ 12:40:49 Sessions 2 Manual Loads 0 Difficulty Rogue Special Mode None Game No. 9 Rogue 9 Adventurer 0 Explorer 0 Win Type - Total 0 Types 0/0/0/0/0/0/0/0/0 Lore% 16 Gallery% 18 Achievement% 14 Wizard Run 0 Options --------- ASCII 0 Keyboard 0 Movement Mouse Keybinds 0 Fullscreen 0 Font 28/Smallcaps Map View 76x50 Tactical HUD 1 Map Filters NONE Filters NONE Steam 1 RUN: dd82128c-838e-49a7-8cbb-c463bb789ef2